Workbook

Sheet Tabelle1
A2: Name | B2: WKN | C2: ISIN | D2: Börse | E2: Ticker | F2: Kurs | G2: Vortag | H2: Änderung | I2: Änderung % | J2: Stück | K2: Wert | L2: Kaufkurs | M2: Investition | N2: Gew./Verl. | O2: Gew./Verl. %
A3: ALTRIA GRP INC. DL-,333 | B3: 200417 | C3: US02209S1033 | D3: FRA | E3: PHM7 | F3: =gQuotesl(D3,E3) -> 57.8 | G3: =gQuotesp(D3,E3) -> 58.4 | H3: =F3-G3 -> -0.6 | I3: =H3/F3 -> -0.01038062284 | J3: 1 | K3: =F3*J3 -> 57.8 | L3: 89 | M3: =J3*L3 -> 89 | N3: =K3-M3 -> -31.2 | O3: =IF(J3=0,0,(N3/M3)) -> -0.3505617978
A4: BASF | B4: BASF11 | C4: DE000BASF111 | D4: ETR | E4: BAS | F4: =gQuotesl(D4,E4) -> 94.87 | G4: =gQuotesp(D4,E4) -> 93.98 | H4: =F4-G4 -> 0.89 | I4: =H4/F4 -> 0.009381258564 | J4: 1 | K4: =F4*J4 -> 94.87 | L4: 90 | M4: =J4*L4 -> 90 | N4: =K4-M4 -> 4.87 | O4: =IF(J4=0,0,(N4/M4)) -> 0.05411111111
A5: Bayer | B5: BAY001 | C5: DE000BAY0017 | D5: ETR | E5: BAYN | F5: =gQuotesl(D5,E5) -> 104.86 | G5: =gQuotesp(D5,E5) -> 105.48 | H5: -0.62 | I5: -0.005912645432 | J5: 1 | K5: 104.86 | L5: 110 | M5: 110 | N5: -5.14 | O5: -0.04672727273
A6: Deutsche Post | B6: 555200 | C6: DE0005552004 | D6: ETR | E6: DPW | F6: 40.44 | G6: 40.52 | H6: -0.08 | I6: -0.001978239367 | J6: 1 | K6: 40.44 | L6: 40 | M6: 40 | N6: 0.44 | O6: 0.011
A7: Deutsche Telekom | B7: 555750 | C7: DE0005557508 | D7: ETR | E7: DTE | F7: 14.46 | G7: 14.4 | H7: 0.06 | I7: 0.004149377593 | J7: 1 | K7: 14.46 | L7: 14 | M7: 14 | N7: 0.46 | O7: 0.03285714286
A8: Daimler | B8: 710000 | C8: DE0007100000 | D8: ETR | E8: DAI | F8: 74.18 | G8: 73.61 | H8: 0.57 | I8: 0.007684011863 | J8: 1 | K8: 74.18 | L8: 70 | M8: 70 | N8: 4.18 | O8: 0.05971428571
A9: ISHSII-JPM DL EM BD DLDIS | B9: A0NECU | C9: IE00B2NPKV68 | D9: FRA | E9: IUS7 | F9: 93.92 | G9: 94.73 | H9: -0.81 | I9: -0.008624361158 | J9: 1 | K9: 93.92 | L9: 90 | M9: 90 | N9: 3.92 | O9: 0.04355555556
A10: UBS MSCI Emerging Markets ETF | B10: UB42AA | C10: LU0480132876 | D10: FRA | E10: UIMI | F10: 98.75 | G10: 98.65 | H10: =F10-G10 -> 0.1 | I10: =H10/F10 -> 0.001012658228 | J10: 1 | K10: =F10*J10 -> 98.75 | L10: 90 | M10: =J10*L10 -> 90 | N10: =K10-M10 -> 8.75 | O10: =IF(J10=0,0,(N10/M10)) -> 0.09722222222
A11: Flossb.v.Storch-Mul.Opp.R | B11: A0M430 | C11: LU0323578657 | D11: FRA | E11: S6TB | F11: 241.72 | G11: 242.82 | H11: -1.1 | I11: -0.004550719841 | J11: 1 | K11: 241.72 | L11: 240 | M11: 240 | N11: 1.72 | O11: 0.007166666667
A12: ARAMEA RENDITE PLUS A | B12: A0NEKQ | C12: DE000A0NEKQ8 | D12: FRA | E12: HJ33 | F12: 187.71 | G12: =gQuotesp(D12,E12) -> 187.68 | H12: =F12-G12 -> 0.03 | I12: =H12/F12 -> 0.0001598210005 | J12: 1 | K12: =F12*J12 -> 187.71 | L12: 180 | M12: =J12*L12 -> 180 | N12: =K12-M12 -> 7.71 | O12: =IF(J12=0,0,(N12/M12)) -> 0.04283333333
K13: =SUM(K3:K12) -> 1008.71
